[Event "Budapest Spring Festival 2019"]
[Site "Budapest"]
[Date "2019.04.10"]
[Round "2.9"]
[White "Savchenko, Boris"]
[Black "Mehar, Chinna Reddy C.H."]
[Result "1/2-1/2"]
[ECO "B69"]
[WhiteElo "2575"]
[BlackElo "2348"]
[Annotator "RC"]
[PlyCount "62"]
[EventDate "2019.04.09"]
[EventType "swiss"]
[EventCountry "HUN"]
[SourceTitle "playchess.com"]
[Source "ChessBase"]
[SourceQuality "1"]
[TimeControl "40/5400+30:1800+30"]

1. e4 {[%emt 0:02:42]} c5 {[%emt 0:00:38]} 2. Nf3 {[%emt 0:00:09]} d6 {[%emt 0:00:11]} 3. d4 {[%emt 0:00:07]} cxd4 {[%emt 0:00:06]} 4. Nxd4 {[%emt 0:00:06]} Nf6 {[%emt 0:00:07]} 5. Nc3 {[%emt 0:00:07]} Nc6 {[%emt 0:00:25]} 6. Bg5 {[%emt 0:00:08]} e6 {[%emt 0:00:10]} 7. Qd2 {[%emt 0:00:07]} a6 {[%emt 0:00:10]} 8. O-O-O {[%emt 0:02:47]} Bd7 {[%emt 0:00:22]} 9. f4 {[%emt 0:02:01]} Be7 {[%emt 0:00:47]} 10. Nf3 {[%emt 0:07:11]} b5 {[%emt 0:00:22]} 11. Bxf6 {[%emt 0:00:47]} gxf6 {[%emt 0:00:09]} 12. f5 {[%emt 0:14:10]} Qb6 {[%emt 0:00:40]} 13. Ne2 {[%emt 0:01:18]} O-O-O {[%emt 0:02:01]} 14. Nf4 {[%emt 0:05:02]} Kb8 {[%emt 0:05:35]} 15. g3 {[%emt 0:09:15]} d5 {[%emt 0:07:41]} 16. fxe6 {[%emt 0:00:37]} fxe6 {[%emt 0:00:25]} 17. exd5 {[%emt 0:00:21]} e5 {[%emt 0:03:23]} 18. d6 {[%emt 0:26:45]} Bg4 {[%emt 0:05:10]} 19. Nd5 {[%emt 0:01:10]} Qc5 {[%emt 0:00:33]} 20. Nxe7 {[%emt 0:05:36]} Nxe7 {[%emt 0:05:52]} 21. Be2 {[%emt 0:04:38]} Nc8 {[%emt 0:08:05]} 22. Qa5 {[%emt 0:12:04]} Rxd6 {[%emt 0:06:47]} 23. Rxd6 {[%emt 0:00:09]} Nxd6 {[%emt 0:01:02]} 24. Kb1 {[%emt 0:03:52]} Rc8 {[%emt 0:03:37]} 25. Rc1 {[%emt 0:00:11]} Bxf3 {[%emt 0:01:11]} 26. Bxf3 {[%emt 0:00:07]} Nc4 {[%emt 0:00:25]} 27. Qc3 {[%emt 0:00:18]} Qf2 {[%emt 0:01:54]} 28. Ka1 {[%emt 0:00:05]} Nd2 {[%emt 0:07:42]} 29. Bc6 {[%emt 0:00:08]} e4 {[%emt 0:01:08]} 30. a4 {[%emt 0:01:56]} Rc7 {[%emt 0:13:36]} 31. Ka2 {[%emt 0:00:29]} Qb6 {[%emt 0:08:11]} 1/2-1/2

[Event "Budapest Spring Festival 2019"]
[Site "Budapest"]
[Date "2019.04.10"]
[Round "2.23"]
[White "Suta, Andraz"]
[Black "Erenberg, Ariel"]
[Result "0-1"]
[ECO "C95"]
[WhiteElo "2205"]
[BlackElo "2437"]
[Annotator "NA"]
[PlyCount "116"]
[EventDate "2019.04.09"]
[EventType "swiss"]
[EventCountry "HUN"]
[SourceTitle "playchess.com"]
[Source "ChessBase"]
[SourceQuality "1"]
[TimeControl "40/5400+30:1800+30"]

1. e4 {[%emt 0:00:03]} e5 {[%emt 0:00:16]} 2. Nf3 {[%emt 0:00:09]} Nc6 {[%emt 0:00:05]} 3. Bb5 {[%emt 0:00:04]} a6 {[%emt 0:00:04]} 4. Ba4 {[%emt 0:00:14]} Nf6 {[%emt 0:00:12]} 5. O-O {[%emt 0:01:28]} Be7 {[%emt 0:00:14]} 6. Re1 {[%emt 0:01:29]} b5 {[%emt 0:00:08]} 7. Bb3 {[%emt 0:00:14]} d6 {[%emt 0:00:06]} 8. c3 {[%emt 0:00:29]} O-O {[%emt 0:00:09]} 9. h3 {[%emt 0:00:05]} Nb8 {[%emt 0:00:31]} 10. d4 {[%emt 0:03:52]} Nbd7 {[%emt 0:00:06]} 11. Nbd2 {[%emt 0:00:24]} Bb7 {[%emt 0:00:02]} 12. Bc2 {[%emt 0:00:11]} Re8 {[%emt 0:00:08]} 13. Nf1 {[%emt 0:00:48]} Bf8 {[%emt 0:00:08]} 14. Ng3 {[%emt 0:00:51]} g6 {[%emt 0:00:08]} 15. a4 {[%emt 0:11:22]} Nb6 {[%emt 0:00:02]} 16. b3 {[%emt 0:03:27]} bxa4 {[%emt 0:05:14]} 17. bxa4 {[%emt 0:00:06]} a5 {[%emt 0:00:16]} 18. Rb1 {[%emt 0:01:15]} Ba6 $11 {[%emt 0:05:26]} 19. Nh2 {[%emt 0:07:31]} Bg7 {[%emt 0:04:29]} 20. Qf3 {[%emt 0:03:48]} Qe7 {[%emt 0:12:42]} 21. Nhf1 {[%emt 0:03:37]} Nfd7 {[%emt 0:13:28]} 22. Rd1 {[%emt 0:03:44]} h5 {[%emt 0:01:58]} 23. Ne3 {[%emt 0:04:37]} Qf6 {[%emt 0:07:43]} 24. Qxf6 {[%emt 0:05:46]} Bxf6 {[%emt 0:00:52]} 25. Bb2 {[%emt 0:03:31]} Rab8 {[%emt 0:05:45]} 26. Ngf1 {[%emt 0:00:51]} Nc4 {[%emt 0:02:23]} 27. Bc1 {[%emt 0:02:55]} Rxb1 {[%emt 0:03:39]} 28. Bxb1 {[%emt 0:00:01]} Rb8 {[%emt 0:01:30]} 29. Ba2 {[%emt 0:03:11]} Nb2 {[%emt 0:07:20]} 30. Bxb2 {[%emt 0:03:16]} Rxb2 {[%emt 0:00:04]} 31. Bc4 {[%emt 0:00:10]} exd4 {[%emt 0:10:16]} 32. cxd4 {[%emt 0:08:41]} Bb7 {[%emt 0:00:18]} 33. d5 {[%emt 0:04:10]} Nc5 {[%emt 0:03:24]} 34. Bb5 {[%emt 0:00:48]} Nxe4 {[%emt 0:01:57]} 35. Nc4 {[%emt 0:01:05]} Ra2 {[%emt 0:01:14]} 36. Nxa5 {[%emt 0:00:13]} Nc3 {[%emt 0:00:27]} 37. Rd3 {[%emt 0:01:42]} Bxd5 {[%emt 0:01:06]} 38. Nc6 {[%emt 0:00:39]} Bxc6 {[%emt 0:05:20]} 39. Bxc6 {[%emt 0:00:01]} Ne2+ {[%emt 0:00:11]} 40. Kh2 {[%emt 0:00:00]} Nd4 {[%emt 0:00:00]} 41. Bd7 {[%emt 0:03:36]} Be5+ {[%emt 0:01:41]} 42. g3 {[%emt 0:00:28]} Rxf2+ {[%emt 0:00:27]} 43. Kg1 {[%emt 0:00:04]} Ra2 {[%emt 0:00:09]} 44. g4 {[%emt 0:02:05]} h4 {[%emt 0:01:17]} 45. Kh1 {[%emt 0:00:23]} Ra1 {[%emt 0:03:07]} 46. Kg2 {[%emt 0:00:10]} Ne2 {[%emt 0:00:10]} 47. Rf3 {[%emt 0:02:49]} Nf4+ {[%emt 0:00:37]} 48. Kh2 {[%emt 0:00:08]} c5 {[%emt 0:03:00]} 49. Ne3 {[%emt 0:00:43]} Nd3+ {[%emt 0:01:20]} 50. Kg2 {[%emt 0:00:20]} Ne1+ {[%emt 0:00:05]} 51. Kf2 {[%emt 0:00:06]} Nxf3 {[%emt 0:03:42]} 52. Kxf3 {[%emt 0:00:03]} Bd4 {[%emt 0:00:37]} 53. Nc2 {[%emt 0:00:47]} Ra2 {[%emt 0:00:57]} 54. Nxd4 {[%emt 0:00:09]} cxd4 {[%emt 0:00:01]} 55. Ke4 {[%emt 0:00:10]} Ra3 {[%emt 0:00:45]} 56. Kxd4 {[%emt 0:00:28]} Rxh3 {[%emt 0:00:02]} 57. Kc4 {[%emt 0:00:33]} Rh1 {[%emt 0:02:26]} 58. a5 {[%emt 0:00:46]} h3 {[%emt 0:00:11]} 0-1

[Event "Budapest Spring Festival 2019"]
[Site "Budapest"]
[Date "2019.04.10"]
[Round "2.24"]
[White "Raja Harshit"]
[Black "Abhilash, Reddy M.L."]
[Result "1-0"]
[ECO "B07"]
[WhiteElo "2432"]
[BlackElo "2252"]
[Annotator "NA"]
[PlyCount "85"]
[EventDate "2019.04.09"]
[EventType "swiss"]
[EventCountry "HUN"]
[SourceTitle "playchess.com"]
[Source "ChessBase"]
[SourceQuality "1"]
[TimeControl "40/5400+30:1800+30"]

1. e4 {[%emt 0:00:17]} d6 {[%emt 0:00:09]} 2. d4 {[%emt 0:00:23]} Nf6 {[%emt 0:00:08]} 3. Nc3 {[%emt 0:00:14]} e5 {[%emt 0:00:09]} 4. dxe5 {[%emt 0:00:41]} dxe5 {[%emt 0:00:03]} 5. Qxd8+ {[%emt 0:00:11]} Kxd8 {[%emt 0:00:02]} 6. Bc4 {[%emt 0:00:14]} Ke8 {[%emt 0:01:18]} 7. Nf3 {[%emt 0:01:12]} Bd6 {[%emt 0:00:23]} 8. Be3 {[%emt 0:00:33]} a6 {[%emt 0:00:31]} 9. O-O-O {[%emt 0:00:34]} h6 {[%emt 0:07:22]} 10. h3 {[%emt 0:04:23]} Nbd7 {[%emt 0:07:35]} 11. a4 {[%emt 0:09:35]} b6 $14 {[%emt 0:04:04]} 12. Rhe1 {[%emt 0:16:41]} Bb7 {[%emt 0:04:18]} 13. Bd5 {[%emt 0:04:27]} Rb8 {[%emt 0:05:19]} 14. Re2 {[%emt 0:05:28]} Kf8 {[%emt 0:12:32]} 15. Bxb7 {[%emt 0:04:47]} Rxb7 {[%emt 0:00:44]} 16. Nd2 {[%emt 0:01:40]} Ke7 {[%emt 0:28:35]} 17. Nc4 {[%emt 0:01:02]} Rc8 {[%emt 0:09:15]} 18. Red2 {[%emt 0:00:47]} Ne8 {[%emt 0:00:44]} 19. Nd5+ {[%emt 0:10:37]} Kf8 {[%emt 0:01:07]} 20. Kb1 {[%emt 0:02:44]} b5 {[%emt 0:11:38]} 21. Na5 {[%emt 0:01:27]} Rbb8 {[%emt 0:00:01]} 22. Nc6 {[%emt 0:00:29]} Ra8 {[%emt 0:00:10]} 23. axb5 {[%emt 0:03:44]} axb5 {[%emt 0:00:09]} 24. Na7 {[%emt 0:00:10]} Rcb8 {[%emt 0:04:33]} 25. Nxc7 {[%emt 0:00:08]} Nxc7 {[%emt 0:00:32]} 26. Rxd6 {[%emt 0:00:06]} Nf6 {[%emt 0:00:44]} 27. f3 {[%emt 0:00:38]} Kg8 {[%emt 0:00:00]} 28. Nc6 {[%emt 0:02:08]} Re8 {[%emt 0:00:00]} 29. Bxh6 Nh7 {[%emt 0:01:35]} 30. Be3 {[%emt 0:01:43]} Nf8 {[%emt 0:00:16]} 31. c3 {[%emt 0:01:56]} f6 {[%emt 0:00:17]} 32. Rd8 {[%emt 0:00:39]} Ng6 {[%emt 0:00:49]} 33. Rxa8 {[%emt 0:00:18]} Nxa8 {[%emt 0:00:30]} 34. Rd7 {[%emt 0:00:24]} Nh4 {[%emt 0:00:17]} 35. Ne7+ {[%emt 0:01:08]} Kh8 {[%emt 0:00:12]} 36. Nf5 {[%emt 0:01:26]} Nxg2 {[%emt 0:00:48]} 37. Nxg7 {[%emt 0:00:04]} Rg8 {[%emt 0:00:17]} 38. Nf5 {[%emt 0:00:11]} Nxe3 {[%emt 0:00:36]} 39. Nxe3 {[%emt 0:00:03]} Nb6 {[%emt 0:00:11]} 40. Rb7 {[%emt 0:00:00]} Nc4 {[%emt 0:00:00]} 41. Ng4 {[%emt 0:00:21]} Nd2+ {[%emt 0:01:15]} 42. Kc2 {[%emt 0:00:13]} Nxf3 {[%emt 0:00:11]} 43. Nxf6 {[%emt 0:00:05]} 1-0

[Event "Budapest Spring Festival 2019"]
[Site "Budapest"]
[Date "2019.04.10"]
[Round "2.25"]
[White "Nguyen, Piotr"]
[Black "Karacsonyi, Gellert"]
[Result "1-0"]
[ECO "B36"]
[WhiteElo "2427"]
[BlackElo "2279"]
[Annotator "NA"]
[PlyCount "79"]
[EventDate "2019.04.09"]
[EventType "swiss"]
[EventCountry "HUN"]
[SourceTitle "playchess.com"]
[Source "ChessBase"]
[SourceQuality "1"]
[TimeControl "40/5400+30:1800+30"]

1. e4 {[%emt 0:00:03]} c5 {[%emt 0:00:11]} 2. Nf3 {[%emt 0:00:11]} Nc6 {[%emt 0:00:09]} 3. d4 {[%emt 0:00:06]} cxd4 {[%emt 0:00:06]} 4. Nxd4 {[%emt 0:00:06]} g6 {[%emt 0:00:09]} 5. c4 {[%emt 0:00:25]} Nf6 {[%emt 0:00:09]} 6. Nc3 {[%emt 0:00:17]} d6 {[%emt 0:00:13]} 7. f3 {[%emt 0:01:21]} Nxd4 {[%emt 0:05:25]} 8. Qxd4 {[%emt 0:00:19]} Bg7 {[%emt 0:00:04]} 9. Be3 {[%emt 0:00:14]} O-O {[%emt 0:00:09]} 10. Qd2 {[%emt 0:00:03]} Qa5 {[%emt 0:00:55]} 11. Rc1 {[%emt 0:02:32]} Be6 {[%emt 0:08:17] LiveBook: 199 Games} 12. b3 {[%emt 0:00:16] B36: Sicilian: Maroczy Bind: Gurgenidze System} (12. Nd5 Qxa2 13. Nxe7+ Kh8 14. Bd4 Rae8 15. Qc3 Nh5 16. Bxg7+ Nxg7 17. b4 Qa4 18. b5 a5 19. Nd5 Bxd5 20. cxd5 f5 21. Ra1 Qb4 22. Qxb4 axb4 {1-0 (51) Carlsen,M (2832)-Guseinov,G (2645) chess.com INT 2017}) 12... Rfc8 {[%emt 0:00:38]} 13. g4 {[%emt 0:07:04]} a6 $146 {[%emt 0:03:05]} ({Predecessor:} 13... Rab8 14. Be2 a6 15. h4 b5 16. Nd5 Qxd2+ 17. Kxd2 Nxd5 18. cxd5 Bd7 19. g5 Bb2 20. Rc2 {½-½ (20) Almarza Mato,C (2199)-Gibbons,A (2113) ICCF email 2017}) 14. Na4 {[%emt 0:12:50]} Qxd2+ {[%emt 0:02:45]} 15. Kxd2 {[%emt 0:00:03]} Nd7 {[%emt 0:00:18]} 16. Rg1 {[%emt 0:09:29]} Rf8 {[%emt 0:06:17]} 17. Nc3 $11 {[%emt 0:24:08]} Kh8 {[%emt 0:08:41]} 18. Nd5 {[%emt 0:07:16]} Bxd5 {[%emt 0:01:40]} 19. cxd5 {[%emt 0:00:32]} Rac8 {[%emt 0:00:23]} 20. Bh3 {[%emt 0:02:09]} Bb2 {[%emt 0:11:40]} 21. Rxc8 {[%emt 0:03:39]} Rxc8 {[%emt 0:01:17]} 22. g5 {[%emt 0:00:26]} Rc7 {[%emt 0:04:57]} 23. Rb1 {[%emt 0:02:06]} Ba3 {[%emt 0:09:29]} 24. Bxd7 {[%emt 0:07:59]} Rxd7 {[%emt 0:00:31]} 25. b4 {[%emt 0:02:44]} Rc7 {[%emt 0:05:14]} 26. Bd4+ {[%emt 0:00:09]} Kg8 {[%emt 0:00:18]} 27. Bc3 {[%emt 0:00:05]} a5 {[%emt 0:00:17]} 28. bxa5 {[%emt 0:00:17]} Bc5 {[%emt 0:00:43]} 29. a4 {[%emt 0:07:21]} Ba7 {[%emt 0:04:26]} 30. f4 {[%emt 0:03:50]} e6 {[%emt 0:16:33]} 31. Kd3 {[%emt 0:02:26]} Kf8 {[%emt 0:07:19]} 32. Bb4 {[%emt 0:00:50]} Bc5 {[%emt 0:00:47]} 33. Rc1 {[%emt 0:02:16]} exd5 {[%emt 0:01:22]} 34. exd5 {[%emt 0:00:06]} Ke7 {[%emt 0:00:23]} 35. Bxc5 {[%emt 0:00:46]} dxc5 {[%emt 0:00:21]} 36. Kc4 {[%emt 0:00:23]} f6 {[%emt 0:02:11]} 37. Re1+ {[%emt 0:00:38]} Kf7 {[%emt 0:00:22]} 38. d6 {[%emt 0:01:33]} Rc6 {[%emt 0:00:45]} 39. Kd5 {[%emt 0:00:19]} fxg5 {[%emt 0:00:30]} 40. d7 {[%emt 0:00:00]} 1-0

[Event "Budapest Spring Festival 2019"]
[Site "Budapest"]
[Date "2019.04.10"]
[Round "2.26"]
[White "Navaratnam, Rohan Shan Tze"]
[Black "Srinath, Rao S.V."]
[Result "0-1"]
[ECO "C12"]
[WhiteElo "2068"]
[BlackElo "2416"]
[Annotator "NA"]
[PlyCount "56"]
[EventDate "2019.04.09"]
[EventType "swiss"]
[EventCountry "HUN"]
[SourceTitle "playchess.com"]
[Source "ChessBase"]
[SourceQuality "1"]
[TimeControl "40/5400+30:1800+30"]

1. e4 e6 {[%emt 0:01:01]} 2. d4 {[%emt 0:00:38]} d5 {[%emt 0:00:06]} 3. Nc3 {[%emt 0:00:09]} Nf6 {[%emt 0:00:05]} 4. Bg5 {[%emt 0:00:13]} Bb4 {[%emt 0:01:38]} 5. exd5 {[%emt 0:00:16]} Qxd5 {[%emt 0:01:11]} 6. Bxf6 {[%emt 0:00:17]} Bxc3+ {[%emt 0:00:04]} 7. bxc3 {[%emt 0:00:09]} gxf6 {[%emt 0:00:02]} 8. Nf3 {[%emt 0:00:21]} Nd7 {[%emt 0:00:19]} 9. g3 {[%emt 0:05:15]} b6 {[%emt 0:00:29]} 10. Bg2 {[%emt 0:04:25]} Ba6 {[%emt 0:00:34]} 11. Nh4 {[%emt 0:00:30]} Qa5 {[%emt 0:00:12]} 12. Qf3 {[%emt 0:06:37]} Rd8 {[%emt 0:07:38]} 13. Qe3 {[%emt 0:17:05]} c5 {[%emt 0:09:50]} 14. f4 {[%emt 0:03:10]} cxd4 {[%emt 0:08:37]} 15. Qxd4 {[%emt 0:00:13]} O-O {[%emt 0:00:46]} 16. Qb4 {[%emt 0:03:09]} Rc8 {[%emt 0:01:30]} 17. O-O-O {[%emt 0:08:07]} Rc7 {[%emt 0:06:10]} 18. Qxa5 {[%emt 0:02:16]} bxa5 {[%emt 0:01:54]} 19. f5 {[%emt 0:04:19]} Ne5 {[%emt 0:07:36]} 20. Rd6 {[%emt 0:06:06]} Bc8 {[%emt 0:01:15]} 21. Bh3 {[%emt 0:04:09]} Rxc3 {[%emt 0:02:29]} 22. fxe6 {[%emt 0:01:09]} fxe6 {[%emt 0:03:09]} 23. Bxe6+ {[%emt 0:00:54]} Bxe6 {[%emt 0:00:06]} 24. Rxe6 {[%emt 0:00:10]} Rfc8 {[%emt 0:00:16]} 25. Rxf6 {[%emt 0:01:24]} Rxc2+ {[%emt 0:00:05]} 26. Kb1 {[%emt 0:00:27]} Nd3 {[%emt 0:00:08]} 27. a4 {[%emt 0:03:09]} Rb2+ {[%emt 0:00:14]} 28. Ka1 {[%emt 0:00:02]} Rc3 {[%emt 0:00:12]} 0-1

[Event "Budapest Spring Festival 2019"]
[Site "Budapest"]
[Date "2019.04.10"]
[Round "2.27"]
[White "Jijo Joy"]
[Black "Taylor, Adam C"]
[Result "1/2-1/2"]
[ECO "C47"]
[WhiteElo "2018"]
[BlackElo "2398"]
[Annotator "NA"]
[PlyCount "86"]
[EventDate "2019.04.09"]
[EventType "swiss"]
[EventCountry "HUN"]
[SourceTitle "playchess.com"]
[Source "ChessBase"]
[SourceQuality "1"]
[TimeControl "40/5400+30:1800+30"]

1. e4 {[%emt 0:00:02]} e5 {[%emt 0:01:21]} 2. Nf3 {[%emt 0:00:18]} Nc6 {[%emt 0:00:07]} 3. Nc3 {[%emt 0:00:28]} Nf6 {[%emt 0:03:30]} 4. d4 {[%emt 0:01:02]} exd4 {[%emt 0:00:48]} 5. Nxd4 {[%emt 0:00:14]} Bb4 {[%emt 0:01:11]} 6. Nxc6 {[%emt 0:00:39]} bxc6 {[%emt 0:00:08]} 7. Bd3 {[%emt 0:00:16]} d5 {[%emt 0:03:36]} 8. exd5 {[%emt 0:01:00]} cxd5 {[%emt 0:00:12]} 9. O-O {[%emt 0:00:26] LiveBook: 2184 Games} O-O {[%emt 0:00:18]} 10. Bg5 $11 {[%emt 0:01:42]} Be6 {[%emt 0:01:51]} 11. Qf3 {[%emt 0:04:31]} Be7 {[%emt 0:01:23]} 12. h3 {[%emt 0:01:55]} h6 {[%emt 0:13:39]} 13. Bh4 {[%emt 0:02:08]} Rb8 {[%emt 0:07:57]} 14. b3 {[%emt 0:04:21]} Rb4 {[%emt 0:03:29]} 15. Bg3 {[%emt 0:00:38]} Bd6 {[%emt 0:00:41]} 16. Bxd6 {[%emt 0:07:56]} Qxd6 {[%emt 0:00:06]} 17. Ne2 {[%emt 0:05:13]} c5 {[%emt 0:11:43]} 18. Rad1 {[%emt 0:05:12]} Qe5 {[%emt 0:23:09]} 19. c3 {[%emt 0:12:17]} Rh4 {[%emt 0:01:53]} 20. Qg3 {[%emt 0:01:17]} Qg5 {[%emt 0:02:39]} 21. f4 {[%emt 0:11:46]} Qh5 {[%emt 0:00:21]} 22. Qe3 {[%emt 0:14:08]} d4 {[%emt 0:06:07]} 23. cxd4 {[%emt 0:03:50]} cxd4 {[%emt 0:04:43]} 24. Qe5 {[%emt 0:00:23]} Qxe5 {[%emt 0:00:54]} 25. fxe5 {[%emt 0:00:02]} Nd5 {[%emt 0:00:11]} 26. Rd2 {[%emt 0:04:57]} Rd8 {[%emt 0:01:51]} 27. Rf3 {[%emt 0:03:30]} Nb4 {[%emt 0:01:19]} 28. Bf5 {[%emt 0:05:05]} Bxf5 {[%emt 0:01:47]} 29. Rxf5 {[%emt 0:00:05]} Re4 {[%emt 0:01:00]} 30. Rf4 {[%emt 0:00:48]} Rxf4 {[%emt 0:00:52]} 31. Nxf4 {[%emt 0:00:04]} g5 {[%emt 0:03:15]} 32. Nd3 {[%emt 0:04:55]} Nxd3 {[%emt 0:00:03]} 33. Rxd3 {[%emt 0:00:04]} f6 {[%emt 0:00:02]} 34. exf6 {[%emt 0:01:35]} Kf7 {[%emt 0:00:01]} 35. Rf3 {[%emt 0:00:07]} Rc8 {[%emt 0:02:42]} 36. Rd3 {[%emt 0:00:08]} Rd8 {[%emt 0:00:16]} 37. Rf3 {[%emt 0:00:04]} d3 {[%emt 0:01:02]} 38. Rf1 {[%emt 0:00:04]} Rc8 {[%emt 0:00:03]} 39. Rd1 {[%emt 0:00:50]} Rc3 {[%emt 0:00:01]} 40. Rd2 {[%emt 0:00:00]} Rc2 {[%emt 0:00:00]} 41. Rxd3 {[%emt 0:01:25]} Rxa2 {[%emt 0:01:48]} 42. Rd6 {[%emt 0:02:49]} Ra3 {[%emt 0:04:28]} 43. b4 {[%emt 0:00:36]} Rb3 {[%emt 0:00:54]} 1/2-1/2

[Event "Budapest Spring Festival 2019"]
[Site "Budapest"]
[Date "2019.04.10"]
[Round "2.36"]
[White "Wong, Jianwen"]
[Black "Shagbazyan, Taron"]
[Result "1-0"]
[ECO "A20"]
[WhiteElo "2185"]
[BlackElo "2429"]
[Annotator "NA"]
[PlyCount "151"]
[EventDate "2019.04.09"]
[EventType "swiss"]
[EventCountry "HUN"]
[SourceTitle "playchess.com"]
[Source "ChessBase"]
[SourceQuality "1"]
[TimeControl "40/5400+30:1800+30"]

1. c4 {[%emt 0:00:04]} e5 {[%emt 0:11:19]} 2. g3 {[%emt 0:00:08]} Nf6 {[%emt 0:00:03]} 3. Bg2 {[%emt 0:00:08]} d5 {[%emt 0:01:18]} 4. cxd5 {[%emt 0:00:12]} Nxd5 {[%emt 0:00:05]} 5. Nc3 {[%emt 0:00:09]} Nb6 {[%emt 0:00:04]} 6. Nf3 {[%emt 0:00:05]} Nc6 {[%emt 0:00:03]} 7. O-O {[%emt 0:00:08]} Be7 {[%emt 0:00:01]} 8. d3 {[%emt 0:00:07]} O-O {[%emt 0:00:05]} 9. Be3 {[%emt 0:00:05]} Be6 {[%emt 0:01:44]} 10. Rc1 {[%emt 0:00:07]} f6 {[%emt 0:07:32]} 11. Ne4 {[%emt 0:01:31] A29: English Opening: Four Knights Variation with 4 g3} (11. a3 Qd7 12. d4 exd4 13. Nxd4 Nxd4 14. Qxd4 Qxd4 15. Bxd4 c6 16. Ne4 Bd5 17. Rfd1 Rfe8 18. e3 Rad8 19. b4 Kf7 {½-½ (39) Kamsky,G (2741)-Cheparinov,I (2678) Khanty-Mansiysk 2013}) 11... a5 $146 {[%emt 0:07:10]} ({Predecessor:} 11... Nd5) 12. Nc5 {[%emt 0:14:49]} Bxc5 {[%emt 0:01:29]} 13. Bxc5 {[%emt 0:02:24]} Rf7 {[%emt 0:00:18]} 14. Nd2 {[%emt 0:08:14]} Bd5 {[%emt 0:05:13]} 15. Bh3 {[%emt 0:06:59]} f5 {[%emt 0:05:32]} 16. Nc4 {[%emt 0:09:42]} Nd7 {[%emt 0:18:29]} 17. Ne3 {[%emt 0:11:06]} Bxa2 {[%emt 0:15:20]} 18. Bxf5 {[%emt 0:15:44]} Nxc5 {[%emt 0:01:57]} 19. Rxc5 {[%emt 0:00:07]} Qf8 {[%emt 0:02:40]} 20. Rxc6 {[%emt 0:02:50]} bxc6 {[%emt 0:00:35]} 21. Qa4 {[%emt 0:02:59]} Rxf5 {[%emt 0:11:48]} 22. Nxf5 {[%emt 0:00:53]} Qxf5 {[%emt 0:00:08]} 23. Qxa2+ {[%emt 0:00:05]} Qf7 {[%emt 0:00:40]} 24. Qa3 {[%emt 0:02:33]} Qd5 {[%emt 0:04:27]} 25. Rc1 {[%emt 0:00:06]} e4 {[%emt 0:02:06]} 26. Rc5 {[%emt 0:03:17]} Qe6 {[%emt 0:00:20]} 27. d4 {[%emt 0:03:33]} Qg4 {[%emt 0:01:53]} 28. Qb3+ {[%emt 0:00:20]} Kh8 {[%emt 0:00:24]} 29. Rxa5 {[%emt 0:00:39]} Re8 {[%emt 0:00:48]} 30. Qe3 {[%emt 0:00:32]} h6 {[%emt 0:00:27]} 31. Re5 {[%emt 0:03:14]} Rxe5 {[%emt 0:00:31]} 32. dxe5 {[%emt 0:00:02]} Kg8 {[%emt 0:00:47]} 33. Qb3+ {[%emt 0:00:41]} Kh7 {[%emt 0:00:35]} 34. Qc4 {[%emt 0:01:59]} Qf5 {[%emt 0:00:12]} 35. e6 {[%emt 0:00:22]} Qe5 {[%emt 0:00:12]} 36. Qxc6 {[%emt 0:00:14]} h5 {[%emt 0:01:05]} 37. Qd7 {[%emt 0:00:29]} Qf5 {[%emt 0:00:27]} 38. Qf7 {[%emt 0:00:09]} Qd5 {[%emt 0:00:02]} 39. Qd7 {[%emt 0:00:56]} Qf5 {[%emt 0:00:38]} 40. Qe8 {[%emt 0:00:00]} e3 {[%emt 0:00:00]} 41. f3 {[%emt 0:10:47]} h4 {[%emt 0:17:08]} 42. gxh4 {[%emt 0:01:07]} Qa5 {[%emt 0:06:33]} 43. Kg2 {[%emt 0:01:54]} Qa6 {[%emt 0:00:09]} 44. Qh5+ {[%emt 0:01:37]} Kg8 {[%emt 0:00:04]} 45. Qf7+ {[%emt 0:01:31]} Kh7 {[%emt 0:02:13]} 46. Qf5+ {[%emt 0:01:17]} Kg8 {[%emt 0:00:29]} 47. Qd3 {[%emt 0:06:13]} Qxe6 {[%emt 0:00:11]} 48. Qd8+ {[%emt 0:00:07]} Kh7 {[%emt 0:00:12]} 49. Qxc7 {[%emt 0:00:24]} Qg6+ {[%emt 0:01:04]} 50. Kh3 {[%emt 0:01:01]} Qb1 {[%emt 0:03:55]} 51. Qc4 {[%emt 0:02:29]} Qxb2 {[%emt 0:00:53]} 52. Qe4+ {[%emt 0:00:15]} Kh8 {[%emt 0:00:03]} 53. Qxe3 {[%emt 0:00:07]} Qb5 {[%emt 0:00:21]} 54. Qe4 {[%emt 0:00:29]} Qd7+ {[%emt 0:00:10]} 55. Kg3 {[%emt 0:00:12]} Qd6+ {[%emt 0:00:06]} 56. f4 {[%emt 0:00:09]} Qc5 {[%emt 0:00:35]} 57. e3 {[%emt 0:00:53]} Qc1 {[%emt 0:00:31]} 58. Qf3 {[%emt 0:01:07]} Qe1+ {[%emt 0:00:43]} 59. Kh3 {[%emt 0:00:08]} Qc3 {[%emt 0:00:07]} 60. h5 {[%emt 0:00:50]} Qc8+ {[%emt 0:00:16]} 61. Kg3 {[%emt 0:00:20]} Qa6 {[%emt 0:00:41]} 62. e4 {[%emt 0:00:11]} Qb6 {[%emt 0:02:12]} 63. e5 {[%emt 0:00:12]} Qg1+ {[%emt 0:01:48]} 64. Kh3 {[%emt 0:00:08]} Qb1 {[%emt 0:00:05]} 65. f5 {[%emt 0:00:18]} Qe1 {[%emt 0:00:32]} 66. Qf4 {[%emt 0:01:47]} Kh7 {[%emt 0:01:17]} 67. f6 {[%emt 0:01:06]} gxf6 {[%emt 0:00:33]} 68. Qf5+ {[%emt 0:00:09]} Kg8 {[%emt 0:00:09]} 69. Qg6+ {[%emt 0:00:07]} Kf8 {[%emt 0:00:13]} 70. Qxf6+ {[%emt 0:00:13]} Kg8 {[%emt 0:00:03]} 71. h6 {[%emt 0:03:02]} Qc3+ {[%emt 0:01:16]} 72. Kg4 {[%emt 0:01:29]} Qc4+ {[%emt 0:00:42]} 73. Kg5 {[%emt 0:00:41]} Qc1+ {[%emt 0:00:17]} 74. Qf4 {[%emt 0:00:16]} Qc8 {[%emt 0:01:05]} 75. Qg4 {[%emt 0:00:20]} Kh7 {[%emt 0:01:39]} 76. Qf5+ {[%emt 0:00:14]} 1-0